bitfinex-derivatives/quotes_BNBF0:USTF0_20250603
["timestamp","ask_amount","ask_price","bid_price","bid_amount"]
[1748959878724,0.30097364,664.51,662.9,0.30170463]
[1748959880820,0.30097364,664.51,662.9,0.78013942]
[1748959880821,3.71140476,664.43,662.9,0.78013942]
[1748959881023,0.30101441,664.42,662.9,0.30170463]
[1748959881628,0.30101441,664.42,662.91,0.47843479]
[1748959881828,0.30101441,664.42,662.9,0.30170463]
[1748959882629,3.71140476,664.4,662.9,0.30170463]
[1748959882830,0.30102801,664.39,662.9,0.30170463]
[1748959883031,4.01243277,664.39,662.9,0.30170463]
[1748959883231,4.01243277,664.39,662.94,0.47843479]
[1748959883425,3.71140476,664.28,662.95,0.47843479]
[1748959883632,4.01248261,664.28,662.95,0.47843479]
[1748959884032,3.71140476,664.27,662.94,0.47843479]
[1748959884230,3.71140476,664.27,662.95,0.47843479]
[1748959884428,3.71140476,664.27,662.96,0.47843479]
[1748959884630,0.30108239,664.27,662.96,0.47843479]
[1748959885032,4.01248715,664.27,662.96,0.47843479]
[1748959885433,4.01248715,664.27,662.9,0.30170463]
[1748959885434,0.30108239,664.27,662.98,0.47843479]
[1748959885834,4.01248715,664.27,662.98,0.47843479]
[1748959886031,4.01248715,664.27,662.96,0.47843479]
[1748959886236,0.30108239,664.27,662.96,0.47843479]
[1748959886437,0.30108239,664.27,662.97,0.47843479]
[1748959886937,0.30108239,664.27,663.0,0.47843479]
[1748959887132,3.71140476,664.25,663.01,0.47843479]
[1748959887337,0.30109598,664.24,663.03,0.47843479]
[1748959887633,4.01250074,664.24,663.02,0.47843479]
[1748959887831,4.01250074,664.24,663.04,0.47843479]
[1748959888338,4.01250074,664.24,663.06,0.47843479]
[1748959888737,3.71140476,664.23,663.06,0.47843479]
[1748959888939,0.30110505,664.22,663.06,0.47843479]
[1748959889541,0.30110505,664.22,663.08,0.47843479]
[1748959890439,0.30110505,664.22,663.11,0.47843479]
[1748959890635,0.30110505,664.22,663.1,0.47843479]
[1748959890836,0.30110505,664.22,663.11,0.47843479]
[1748959891442,0.30110505,664.22,663.14,0.47843479]
[1748959891839,3.71140476,664.15,663.23,0.47843479]
[1748959892242,3.71140476,664.15,663.26,0.47843479]
[1748959892543,3.71140476,664.12,663.33,0.47843479]
[1748959892843,3.71140476,664.09,663.33,0.47843479]
[1748959893043,3.71140476,664.09,663.34,0.47843479]
[1748959893245,3.71140476,664.07,663.34,0.47843479]
[1748959893543,3.71140476,664.07,663.35,0.47843479]
[1748959893745,3.71140476,664.06,663.35,0.47843479]
[1748959894139,3.71140476,664.07,663.35,0.47843479]
[1748959894639,3.71140476,664.06,663.35,0.47843479]
[1748959895038,3.71140476,664.08,663.34,0.47843479]
[1748959895444,3.71140476,664.07,663.33,0.47843479]
[1748959895943,3.71140476,664.07,663.4,0.47843479]
[1748959896144,3.71140476,664.0,663.39,0.47843479]
[1748959896339,3.71140476,664.0,663.4,0.47843479]
[1748959896545,3.71140476,664.0,663.39,0.47843479]
[1748959897345,3.71140476,664.0,663.38,0.47843479]
[1748959897742,3.71140476,663.99,663.37,0.47843479]
[1748959898546,3.71140476,663.99,663.36,0.47843479]
[1748959899150,3.71140476,663.98,663.36,0.47843479]
[1748959899745,3.71140476,663.98,663.35,0.47843479]
[1748959900150,3.71140476,663.96,663.33,0.47843479]
[1748959900553,3.71140476,663.95,663.32,0.47843479]
[1748959901149,3.71140476,663.95,663.03,0.47843479]
[1748959901455,0.30110505,664.22,663.02,0.47843479]
[1748959901651,0.30110505,664.22,662.96,0.47843479]
[1748959901850,0.30110505,664.22,662.95,0.47843479]
[1748959902455,0.30110505,664.22,662.94,0.47843479]
[1748959902649,0.30110505,664.22,662.93,0.47843479]
[1748959903355,0.30110505,664.22,662.94,0.47843479]
[1748959903556,0.30110505,664.22,662.92,0.47843479]
[1748959904452,0.30110505,664.22,662.9,0.78013942]
[1748959905454,0.30110505,664.22,662.9,0.30170463]
[1748959905654,0.30110505,664.22,662.9,0.78013942]
[1748959907555,0.30110505,664.22,662.9,0.30170463]
[1748959909355,0.30110505,664.22,662.93,0.47843479]
[1748959909556,0.30110505,664.22,662.95,0.47843479]
[1748959909853,3.71140476,664.17,662.96,0.47843479]
[1748959910058,0.30113225,664.16,662.97,0.47843479]
[1748959910257,4.01253701,664.16,662.97,0.47843479]
[1748959910458,4.01253701,664.16,662.96,0.47843479]
[1748959910660,0.30113225,664.16,662.97,0.47843479]
[1748959910861,0.30113225,664.16,662.96,0.47843479]
[1748959911260,4.01253701,664.16,662.96,0.47843479]
[1748959911961,4.01253701,664.16,662.97,0.47843479]
[1748959912160,3.71140476,664.15,662.97,0.47843479]
[1748959913557,3.71140476,664.14,662.97,0.47843479]
[1748959913958,3.71140476,664.15,662.97,0.47843479]
[1748959914262,3.71140476,664.15,662.9,0.30170463]
[1748959914461,0.30113225,664.16,662.9,0.30170463]
[1748959915464,0.30113225,664.16,662.92,0.47843479]
[1748959915767,0.30113225,664.16,662.9,0.30170463]
[1748959915768,0.30113225,664.16,662.91,0.47843479]
[1748959916064,3.71140476,664.03,662.91,0.47843479]
[1748959916261,3.71140476,664.02,662.9,0.78013942]
[1748959916661,3.71140476,664.02,662.9,0.30170463]
[1748959916859,0.30113225,664.16,662.9,0.30170463]
[1748959916860,3.71140476,664.0,662.9,0.30170463]
[1748959917264,3.71140476,664.0,662.91,0.47843479]
[1748959917666,3.71140476,663.98,662.9,0.78013942]
[1748959918162,3.71140476,663.97,662.91,0.47843479]
[1748959918567,3.71140476,663.97,662.9,0.30170463]
[1748959918568,3.71140476,663.97,662.9,0.78013942]
[1748959918967,3.71140476,663.98,662.9,0.78013942]
[1748959919669,3.71140476,663.97,662.9,0.30170463]
[1748959919964,3.71140476,663.99,662.9,0.30170463]
[1748959921269,0.30113225,664.16,662.9,0.30170463]
[1748959922775,0.30113225,664.16,662.91,1.05481653]
[1748959923074,0.30113225,664.16,662.92,1.05481653]
[1748959923274,0.30113225,664.16,662.93,1.05481653]
[1748959923474,0.30113225,664.16,662.94,1.05481653]
[1748959923670,0.30113225,664.16,662.95,1.05481653]
[1748959923873,0.30113225,664.16,662.96,1.05481653]
[1748959924074,0.30113225,664.16,662.97,1.05481653]
[1748959924275,0.30113225,664.16,663.21,0.47843479]
[1748959924475,3.71140476,664.04,663.22,0.47843479]
[1748959924673,3.71140476,664.04,663.21,0.47843479]
[1748959925078,3.71140476,664.04,663.2,0.47843479]
[1748959925975,0.30113225,664.16,663.24,0.47843479]
[1748959925976,3.71140476,664.05,663.24,0.47843479]
[1748959926374,3.71140476,664.01,663.24,0.47843479]
[1748959926574,3.71140476,664.01,663.23,0.47843479]
[1748959927580,3.71140476,664.01,662.9,0.30170463]
[1748959927581,3.71140476,664.01,663.25,0.47843479]
[1748959927782,3.71140476,663.96,663.27,0.47843479]
[1748959927977,3.71140476,663.96,663.26,0.47843479]
[1748959928177,3.71140476,663.96,663.25,0.47843479]
[1748959928882,3.71140476,663.96,662.9,0.30170463]
[1748959928883,3.71140476,663.96,663.05,0.47843479]
[1748959929083,0.30113225,664.16,663.1,0.47843479]
[1748959929282,0.30113225,664.16,663.09,0.47843479]
[1748959929482,0.30113225,664.16,663.1,0.47843479]
[1748959929783,0.30113225,664.16,663.09,0.47843479]
[1748959930681,0.30113225,664.16,662.9,0.30170463]
[1748959930682,0.30113225,664.16,663.06,0.47843479]
[1748959931683,0.30113225,664.16,663.05,0.47843479]
[1748959932285,0.30113225,664.16,662.9,0.30170463]
[1748959932479,0.30113225,664.16,662.91,1.05444073]
[1748959932685,0.30113225,664.16,662.92,1.05444073]
[1748959932886,0.30113225,664.16,662.93,1.05444073]
[1748959933082,0.30113225,664.16,662.94,1.05444073]
[1748959933281,0.30113225,664.16,662.95,1.05444073]
[1748959933487,0.30113225,664.16,662.96,1.35609013]
[1748959933679,0.30113225,664.16,662.97,1.35608558]
[1748959933879,0.30113225,664.16,662.98,1.05441281]
[1748959934086,0.30113225,664.16,662.97,0.30167277]
[1748959934587,0.30113225,664.16,662.98,1.05440668]
[1748959934787,0.30113225,664.16,662.98,0.30166822]
[1748959936484,0.30113225,664.16,662.99,1.05437238]
[1748959936689,0.30113225,664.16,663.0,1.05437238]
[1748959936888,0.30113225,664.16,663.01,1.05437238]
[1748959937192,0.30113225,664.16,663.02,1.0542442]
[1748959937392,0.30113225,664.16,663.03,1.0542442]
[1748959937690,0.30113225,664.16,662.98,0.30166822]
[1748959937892,0.30113225,664.16,662.99,1.05414641]
[1748959938091,0.30113225,664.16,663.0,1.05414641]
[1748959938287,0.30113225,664.16,663.01,1.05414641]
[1748959938492,0.30113225,664.16,663.02,1.05414641]
[1748959938793,0.30113225,664.16,663.03,1.05414641]
[1748959938985,0.30113225,664.16,663.04,1.05414641]
[1748959939186,0.30113225,664.16,663.05,1.05414641]
[1748959939387,0.30113225,664.16,663.06,1.05414641]
[1748959939589,0.30113225,664.16,663.07,1.05414641]
[1748959939790,0.30113225,664.16,662.98,0.30166822]
[1748959940087,0.30113225,664.16,662.99,1.0536726]
[1748959940287,0.30113225,664.16,663.0,1.0536726]
[1748959940487,0.30113225,664.16,663.01,1.0536726]
[1748959940690,0.30113225,664.16,663.02,1.0536726]
[1748959940988,0.30113225,664.16,663.03,1.0536726]
[1748959941186,0.30113225,664.16,663.04,1.0536726]
[1748959941390,0.30113225,664.16,663.05,1.05352872]
[1748959941594,0.30113225,664.16,663.06,1.05352872]
[1748959941793,0.30113225,664.16,663.07,1.05352872]
[1748959942092,0.30113225,664.16,663.08,1.05352872]
[1748959942294,0.30113225,664.16,662.98,0.30166822]
[1748959942494,0.30113225,664.16,662.99,1.05338587]
[1748959942797,0.30113225,664.16,663.0,1.53182066]
[1748959942986,0.30113225,664.16,663.01,1.05338587]
[1748959943188,0.30113225,664.16,663.02,1.05338587]
[1748959943391,0.30113225,664.16,663.03,1.05338587]
[1748959943589,0.30113225,664.16,663.04,1.05338587]
[1748959943793,0.30113225,664.16,663.05,1.05338587]
[1748959943993,0.30113225,664.16,663.06,1.05338587]
[1748959944188,0.30113225,664.16,662.98,0.30166822]
[1748959944396,0.30113225,664.16,662.99,1.79718374]
[1748959944593,0.30113225,664.16,663.0,1.35477236]
[1748959944895,0.30113225,664.16,663.01,1.35476781]
[1748959945091,0.30113225,664.16,663.02,1.35476326]
[1748959945295,0.30113225,664.16,663.03,1.35475871]
[1748959945496,0.30113225,664.16,663.04,1.05311324]
[1748959945696,0.30113225,664.16,663.05,1.05311324]
[1748959945895,0.30113225,664.16,663.06,1.05311324]
[1748959946194,0.30113225,664.16,663.03,0.30164547]
[1748959946393,0.30113225,664.16,663.04,1.05286651]
[1748959946598,0.30113225,664.16,663.05,1.05286651]
[1748959946789,0.30113225,664.16,663.06,1.05286651]
[1748959946992,0.30113225,664.16,663.03,0.30164547]
[1748959947192,0.30113225,664.16,663.04,1.05276016]
[1748959947393,0.30113225,664.16,663.05,1.05276016]
[1748959947595,0.30113225,664.16,663.03,0.30164547]
[1748959947791,0.30113225,664.16,663.04,1.05266034]
[1748959947999,0.30113225,664.16,663.05,1.05266034]
[1748959948193,0.30113225,664.16,663.03,0.30164547]
[1748959948396,0.30113225,664.16,663.04,1.05266048]
[1748959948593,0.30113225,664.16,663.03,0.30164547]
[1748959948798,0.30113225,664.16,663.09,0.47843479]
[1748959949399,3.71140476,664.28,663.09,0.47843479]
[1748959949800,3.71140476,664.28,663.1,0.47843479]
[1748959950301,3.71140476,664.28,663.07,0.47843479]
[1748959950602,3.71140476,664.31,663.08,1.05243027]
[1748959950800,3.71140476,664.59,663.09,1.05243027]
[1748959951106,0.30094194,664.58,663.1,1.05243027]
[1748959951301,0.30094194,664.58,663.11,1.05243027]
[1748959951499,0.30094194,664.58,663.12,1.79533422]
[1748959951700,0.30094194,664.58,663.13,2.27376181]
[1748959951900,4.0123467,664.58,663.14,1.05243027]
[1748959952097,4.0123467,664.58,663.15,1.79532583]
[1748959952301,0.30094194,664.58,663.16,1.05243027]
[1748959952497,0.30094194,664.58,663.17,1.05243027]
[1748959952696,0.30094194,664.58,663.18,1.05243027]
[1748959952896,0.30094194,664.58,663.11,0.47843479]
[1748959953195,0.30094194,664.58,663.14,0.47843479]
[1748959953393,0.30094194,664.58,663.03,0.30164547]
[1748959953394,4.0123467,664.58,663.18,0.47843479]
[1748959953603,4.0123467,664.58,663.19,0.47843479]
[1748959953802,0.30094194,664.58,663.2,0.47843479]
[1748959954004,0.30094194,664.58,663.03,0.30164547]
[1748959954005,0.30094194,664.58,663.21,0.47843479]
[1748959954201,4.0123467,664.58,663.2,0.47843479]
[1748959954706,0.30094194,664.58,663.25,0.47843479]
[1748959955704,0.30094194,664.58,663.03,0.30164547]
[1748959955705,0.30094194,664.58,663.28,0.47843479]
[1748959956298,0.30094194,664.58,663.27,0.47843479]
[1748959956705,0.30094194,664.58,663.32,0.47843479]
[1748959957704,0.30094194,664.58,663.36,0.47843479]
[1748959958607,0.30094194,664.58,663.03,0.30164547]
[1748959958608,0.30094194,664.58,663.38,0.47843479]
[1748959958999,0.30094194,664.58,663.4,0.47843479]
[1748959959607,0.30094194,664.58,663.42,0.47843479]
[1748959960204,0.30094194,664.58,663.35,0.47843479]
[1748959960702,0.30094194,664.58,663.36,0.47843479]
[1748959960902,0.30094194,664.58,663.22,0.47843479]
[1748959961505,0.30094194,664.58,663.23,0.47843479]
[1748959961706,0.30094194,664.58,663.25,0.47843479]
[1748959961907,0.30094194,664.58,663.26,0.47843479]
[1748959962408,0.30094194,664.58,663.27,0.47843479]
[1748959962609,0.30094194,664.58,663.28,0.47843479]
[1748959962802,0.30094194,664.58,663.03,0.30164547]
[1748959962803,0.30094194,664.58,663.29,0.47843479]
[1748959963710,0.30094194,664.58,663.31,0.47843479]
[1748959964509,0.30094194,664.58,663.32,0.47843479]
[1748959965704,0.30094194,664.58,663.33,0.47843479]
[1748959966108,0.30094194,664.58,663.32,0.47843479]
[1748959966703,0.30094194,664.58,663.3,0.47843479]
[1748959966908,0.30094194,664.58,663.35,0.47843479]
[1748959967304,0.30094194,664.58,663.34,0.47843479]
[1748959968011,0.30094194,664.58,663.62,0.47843479]
[1748959968406,3.71140476,664.42,663.62,0.47843479]
[1748959968808,3.71140476,664.42,663.28,0.47655954]
[1748959968809,3.71140476,664.42,663.63,0.47843479]
[1748959969013,3.71140476,664.46,663.55,0.47843479]
[1748959969609,3.71140476,664.46,663.54,0.47843479]
[1748959969912,3.71140476,664.46,663.55,0.47843479]
[1748959970313,3.71140476,664.45,663.55,0.47843479]
[1748959970514,3.71140476,664.45,663.44,0.47843479]
[1748959970712,3.71140476,664.57,663.44,0.47843479]
[1748959970911,3.71140476,664.57,663.45,0.47843479]
[1748959971311,4.01235123,664.57,663.44,0.47843479]
[1748959971508,4.01235123,664.57,663.46,0.47843479]
[1748959971714,4.01235576,664.56,663.44,0.47843479]
[1748959971909,0.30095553,664.55,663.44,0.47843479]
[1748959972612,0.30095553,664.55,663.43,0.47843479]
[1748959972812,0.30095553,664.55,663.44,0.47843479]
[1748959973609,0.30095553,664.55,663.43,0.47843479]
[1748959974015,0.30095553,664.55,663.42,0.47843479]
[1748959974615,0.30095553,664.55,663.4,0.47843479]
[1748959974816,4.01236029,664.55,663.4,0.47843479]
[1748959975719,3.71140476,664.54,663.36,0.47843479]
[1748959975913,0.30096459,664.53,663.36,0.47843479]
[1748959976417,0.30096459,664.53,663.37,0.47843479]
[1748959976617,0.30096459,664.53,663.32,0.47843479]
[1748959976816,3.71140476,664.51,663.33,0.47843479]
[1748959977012,0.30097817,664.5,663.33,0.47843479]
[1748959977613,0.30097817,664.5,663.28,0.47843479]
[1748959977813,3.71140476,664.49,663.28,0.47843479]
[1748959978119,3.71140476,664.49,663.29,0.47843479]
[1748959978519,4.01238293,664.5,663.21,0.47843479]
[1748959978920,4.01238293,664.5,663.24,0.47843479]
[1748959979115,3.71140476,664.47,663.24,0.47843479]
[1748959980020,3.71140476,664.46,663.24,0.47843479]
[1748959980421,3.71140476,664.46,663.33,0.47843479]
[1748959980621,3.71140476,664.33,663.33,0.47843479]
[1748959980816,3.71140476,664.33,663.03,0.30164547]
[1748959980817,3.71140476,664.33,663.34,0.47843479]
[1748959981019,3.71140476,664.34,663.34,0.47843479]
[1748959981227,3.71140476,664.34,663.35,0.47843479]
[1748959981429,3.71140476,664.32,663.36,0.47843479]
[1748959981621,3.71140476,664.32,663.37,0.47843479]
[1748959981926,3.71140476,664.3,663.37,0.47843479]
[1748959982128,3.71140476,664.3,663.38,0.47843479]
[1748959982627,3.71140476,664.3,663.39,0.47843479]
[1748959982927,3.71140476,664.29,663.39,0.47843479]
[1748959983729,3.71140476,664.29,663.4,0.47843479]
[1748959983929,3.71140476,664.29,663.42,0.47843479]
[1748959984129,3.71140476,664.27,663.42,0.47843479]
[1748959984429,3.71140476,664.27,663.37,0.47843479]
[1748959984630,3.71140476,664.31,663.37,0.47843479]
[1748959984824,3.71140476,664.31,663.4,0.47843479]
[1748959985024,3.71140476,664.34,663.41,0.47843479]
[1748959985529,3.71140476,664.34,663.03,0.30164547]
[1748959985530,0.30097817,664.5,663.25,0.47843479]
[1748959986228,0.30097817,664.5,663.27,0.47843479]
[1748959986631,0.30097817,664.5,663.26,0.47843479]
[1748959987331,0.30097817,664.5,663.25,0.47843479]
[1748959987933,0.30097817,664.5,663.26,0.47843479]
[1748959988430,0.30097817,664.5,663.27,0.47843479]
[1748959989134,0.30097817,664.5,663.25,0.47843479]
[1748959989435,0.30097817,664.5,663.21,0.47843479]
[1748959989735,0.30097817,664.5,663.2,0.47843479]
[1748959989937,0.30097817,664.5,663.21,0.77999839]
[1748959990231,0.30097817,664.5,663.21,0.3015636]
[1748959990731,0.30097817,664.5,663.22,1.05167549]
[1748959990935,0.30097817,664.5,663.23,1.05167549]
[1748959991235,0.30097817,664.5,663.24,1.05167549]
[1748959991430,0.30097817,664.5,663.21,0.3015636]
[1748959991632,0.30097817,664.5,663.22,1.05175826]
[1748959991837,0.30097817,664.5,663.23,1.05175826]
[1748959992035,0.30097817,664.5,663.24,1.05175826]
[1748959992231,0.30097817,664.5,663.21,0.3015636]
[1748959992429,0.30097817,664.5,663.22,1.05177891]
[1748959992734,0.30097817,664.5,663.21,0.3015636]
[1748959992735,0.30097817,664.5,663.23,1.05177891]
[1748959992933,0.30097817,664.5,663.24,1.05177891]
[1748959993134,0.30097817,664.5,663.25,1.05189847]
[1748959993330,0.30097817,664.5,663.21,0.3015636]
[1748959993634,0.30097817,664.5,663.22,1.05189853]
[1748959993835,0.30097817,664.5,663.23,1.05189853]
[1748959994130,0.30097817,664.5,663.24,1.05189853]
[1748959994335,0.30097817,664.5,663.25,1.05189853]
[1748959994535,0.30097817,664.5,663.21,0.3015636]
[1748959995036,0.30097817,664.5,663.22,1.05220992]
[1748959995237,0.30097817,664.5,663.29,0.47976765]
[1748959996233,0.30097817,664.5,663.3,0.47976765]
[1748959997635,0.30097817,664.5,663.29,0.47976765]
[1748959998138,0.30097817,664.5,663.27,0.47976765]
[1748959999139,0.30097817,664.5,663.29,0.47976765]
[1748960000241,0.30097817,664.5,663.32,0.47976765]
[1748960002442,0.30097817,664.5,663.31,0.47976765]
[1748960002644,0.30097817,664.5,663.29,0.47976765]
[1748960003037,0.30097817,664.5,663.3,0.47976765]
[1748960003238,0.30097817,664.5,663.31,0.47976765]
[1748960003444,0.30097817,664.5,663.25,0.47976765]
[1748960003638,0.30097817,664.5,663.26,1.05232175]
[1748960003843,0.30097817,664.5,663.27,1.05232175]
[1748960004043,0.30097817,664.5,663.28,1.05232175]
[1748960004343,0.30097817,664.5,663.21,0.3015636]
[1748960004539,0.30097817,664.5,663.22,1.05241815]
[1748960004739,0.30097817,664.5,663.23,1.05241815]
[1748960004941,0.30097817,664.5,663.24,1.05241815]
[1748960005143,0.30097817,664.5,663.25,1.05241815]
[1748960005337,0.30097817,664.5,663.26,1.05241815]
[1748960005538,0.30097817,664.5,663.27,1.05241815]
[1748960005736,0.30097817,664.5,663.21,0.3015636]
[1748960005737,0.30097817,664.5,663.28,1.05241815]
[1748960005937,0.30097817,664.5,663.29,1.05241815]
[1748960006138,0.30097817,664.5,663.21,0.3015636]
[1748960006338,0.30097817,664.5,663.22,1.05263469]
[1748960006637,0.30097817,664.5,663.21,0.3015636]
[1748960006638,0.30097817,664.5,663.23,1.05263469]
[1748960006839,0.30097817,664.5,663.24,1.0527615]
[1748960007040,0.30097817,664.5,663.25,1.0527615]
[1748960007239,0.30097817,664.5,663.26,1.0527615]
[1748960007445,0.30097817,664.5,663.27,1.0527615]
[1748960007641,0.30097817,664.5,663.28,1.0527615]
[1748960007846,0.30097817,664.5,663.29,1.0527615]
[1748960008041,0.30097817,664.5,663.3,1.0527615]
[1748960008246,0.30097817,664.5,663.21,0.3015636]
[1748960008548,0.30097817,664.5,663.22,1.05291024]
[1748960008747,0.30097817,664.5,663.23,1.05291024]
[1748960009042,0.30097817,664.5,663.24,1.05291024]
[1748960009243,0.30097817,664.5,663.25,1.05291024]
[1748960009446,0.30097817,664.5,663.26,1.05291024]
[1748960009646,0.30097817,664.5,663.27,1.05291024]
[1748960009846,0.30097817,664.5,663.28,1.05291024]
[1748960010047,0.30097817,664.5,663.29,1.05291024]
[1748960010347,0.30097817,664.5,663.3,1.05291024]
[1748960010545,0.30097817,664.5,663.21,0.78133125]
[1748960010747,0.30097817,664.5,663.22,1.05340602]
[1748960011044,0.30097817,664.5,663.23,1.05340602]
[1748960011248,0.30097817,664.5,663.24,1.05340602]
[1748960011447,0.30097817,664.5,663.25,1.05340602]
[1748960011648,0.30097817,664.5,663.26,1.05340602]
[1748960011849,0.30097817,664.5,663.27,1.05340602]
[1748960012050,0.30097817,664.5,663.28,1.05340602]
[1748960012243,0.30097817,664.5,663.29,1.05340602]
[1748960012444,0.30097817,664.5,663.3,1.05340602]
[1748960012651,0.30097817,664.5,663.31,1.05340602]
[1748960012950,0.30097817,664.5,663.23,0.47976765]
[1748960013149,0.30097817,664.5,663.24,1.05339756]
[1748960013349,0.30097817,664.5,663.27,0.47976765]
[1748960013549,0.30097817,664.5,663.25,1.05339756]
[1748960013550,0.30097817,664.5,663.28,1.53316521]
[1748960013747,0.30097817,664.5,663.29,1.05339756]
[1748960014050,0.30097817,664.5,663.28,0.47976765]
[1748960014051,0.30097817,664.5,663.35,0.47976765]
[1748960014248,3.71140476,664.48,663.36,0.47976765]
[1748960014548,3.71140476,664.47,663.37,0.47976765]
[1748960014746,3.71140476,664.47,663.45,0.47976765]
[1748960015148,0.30097817,664.5,663.47,0.47976765]
[1748960015149,3.71140476,664.37,663.47,0.47976765]
[1748960015351,3.71140476,664.37,663.48,0.47976765]
[1748960015752,3.71140476,664.36,663.48,0.47976765]
[1748960016648,0.30097817,664.5,663.21,0.3015636]
[1748960017949,3.71140476,664.47,663.21,0.3015636]
[1748960018147,0.30099629,664.46,663.21,0.3015636]
[1748960018347,3.71140476,664.38,663.21,0.3015636]
[1748960018853,3.71140476,664.31,663.21,0.3015636]
[1748960019551,3.71140476,664.28,663.21,0.3015636]
[1748960019851,3.71140476,664.15,663.21,0.3015636]
[1748960020650,3.71140476,664.13,663.21,0.3015636]
[1748960021154,0.30099629,664.46,663.21,0.3015636]
[1748960023556,0.30099629,664.46,662.5,1.12785386]
[1748960023750,0.30099629,664.46,662.52,0.30187767]
[1748960023950,0.30099629,664.46,662.53,1.05050329]
[1748960024154,0.30099629,664.46,662.55,0.30186401]
[1748960024351,0.30099629,664.46,662.56,1.05050329]
[1748960024553,0.30099629,664.46,662.58,0.30185034]
[1748960024753,0.30099629,664.46,662.59,1.05050329]
[1748960024949,0.30099629,664.46,662.61,0.30183667]
[1748960025154,0.30099629,664.46,662.89,0.47976765]
[1748960025356,3.71140476,664.06,662.92,0.47976765]
[1748960025855,3.71140476,664.07,662.92,0.47976765]
[1748960026355,3.71140476,663.98,662.96,0.47976765]
[1748960026555,3.71140476,663.98,662.97,0.47976765]
[1748960026756,3.71140476,663.99,662.95,0.47976765]
[1748960026956,3.71140476,663.99,662.61,0.30183667]
[1748960026957,3.71140476,663.99,662.94,0.47976765]
[1748960027352,3.71140476,663.99,662.93,0.47976765]
[1748960027758,3.71140476,664.0,662.93,0.47976765]
[1748960028655,3.71140476,664.0,662.91,0.47976765]
[1748960029060,3.71140476,664.01,662.91,0.47976765]
[1748960029755,3.71140476,664.01,662.86,0.47976765]
[1748960029962,3.71140476,663.98,662.85,0.47976765]
[1748960030560,3.71140476,663.98,662.88,0.47976765]
[1748960030760,3.71140476,664.04,662.88,0.47976765]
[1748960031161,3.71140476,664.04,662.85,0.47976765]
[1748960031361,3.71140476,664.04,662.84,0.47976765]
[1748960031557,3.71140476,664.06,662.88,0.47976765]
[1748960032061,3.71140476,664.05,662.87,0.47976765]
[1748960032258,3.71140476,664.05,662.86,0.47976765]
[1748960032458,3.71140476,664.05,662.61,0.30183667]
[1748960032459,3.71140476,664.05,662.87,0.47976765]
[1748960033563,3.71140476,664.05,662.61,0.30183667]
[1748960033564,3.71140476,664.05,662.89,0.47976765]
[1748960033759,3.71140476,664.07,662.89,0.47976765]
[1748960033958,3.71140476,664.07,662.61,0.30183667]
[1748960033959,3.71140476,664.07,662.9,0.47976765]
[1748960034359,3.71140476,664.32,662.61,0.30183667]
[1748960034558,0.30106879,664.3,662.62,1.04767753]
[1748960034760,3.71140476,664.29,662.63,1.04767753]
[1748960034963,3.71140476,664.29,662.62,0.30183212]
[1748960034964,0.30108239,664.27,662.62,0.30183212]
[1748960035157,0.30108239,664.27,662.63,1.04715294]
[1748960035361,0.30108239,664.27,662.64,0.47976765]
[1748960035762,0.30108239,664.27,662.65,0.47976765]
[1748960036259,0.30108239,664.27,662.66,0.47976765]
[1748960036459,0.30108239,664.27,662.7,0.47976765]
[1748960036865,0.30108239,664.27,662.71,0.47976765]
[1748960037567,0.30108239,664.27,662.76,0.47976765]
[1748960038667,0.30108239,664.27,662.8,0.47976765]
[1748960038863,0.30108239,664.27,662.79,0.47976765]
[1748960039368,0.30108239,664.27,662.82,0.47976765]
[1748960039565,0.30108239,664.27,662.83,0.47976765]
[1748960039767,0.30108239,664.27,662.62,0.30183212]
[1748960039768,0.30108239,664.27,662.82,0.47976765]
[1748960040369,0.30108239,664.27,662.83,0.47976765]
[1748960040571,0.30108239,664.27,662.84,0.47976765]
[1748960041367,0.30108239,664.27,662.81,0.47976765]
[1748960041773,0.30108239,664.27,662.83,0.47976765]
[1748960041966,0.30108239,664.27,662.85,0.47976765]
[1748960042370,0.30108239,664.27,662.93,0.47976765]
[1748960042571,0.30108239,664.27,662.96,0.47976765]
[1748960043268,0.30108239,664.27,663.07,0.47976765]
[1748960043469,0.30108239,664.27,662.62,0.30183212]
[1748960043470,3.71140476,664.25,663.09,0.47976765]
[1748960043667,0.30110052,664.23,663.1,0.47976765]
[1748960044174,0.30110052,664.23,662.88,0.47976765]
[1748960044370,0.30110052,664.23,662.9,0.47976765]
[1748960044570,0.30110052,664.23,662.94,0.47976765]
[1748960045274,0.30110052,664.23,662.93,0.47976765]
[1748960045671,0.30110052,664.23,662.97,0.47976765]
[1748960046470,0.30110052,664.23,662.99,0.47976765]
[1748960046671,0.30110052,664.23,663.02,0.47976765]
[1748960047378,0.30110052,664.23,663.05,0.47976765]
[1748960047577,0.30110052,664.23,662.62,0.30183212]
[1748960047578,0.30110052,664.23,663.08,0.47976765]
[1748960047979,0.30110052,664.23,663.29,0.47976765]
[1748960048179,3.71140476,664.15,663.3,0.0755836]
[1748960048380,0.30114585,664.13,662.94,0.47976765]
[1748960048680,0.30114585,664.13,662.97,0.47976765]
[1748960048875,0.30114585,664.13,662.95,0.47976765]
[1748960049082,0.30114585,664.13,662.96,0.47976765]
[1748960049277,0.30114585,664.13,662.97,0.47976765]
[1748960049475,0.30114585,664.13,663.0,0.47976765]